Cogmind - Beta 13 @@@ ROGUE MODE // 2024.05.14 @ 08:21:26 Player: N00Bk1llr Result: Destroyed by Y-45 Defender with Heavy Assault Rifle Performance ------------- Evolutions (1) 500 Regions Visited (2) 400 Robots Destroyed (48) 240 Value Destroyed (1078) 1078 Prototype IDs (5) 100 Alien Tech Used (0) 0 Bonus (0) 0 TOTAL SCORE: 2318 Bonus ------- None Cogmind --------- Core Integrity 0/400 Matter 300/300 Energy 100/100 System Corruption 0% Temperature Cool (69) Movement Rolling (105) Ox1 Location -9/Materials Parts ------- > --- POWER (1) -------- Backup Power I > --- PROPULSION (2) --- Armored Wheel Armored Wheel > --- UTILITY (4) ------ Heat Sink Large Storage Unit Improved Targeting Computer Backup Plating I > --- WEAPON (2) ------- Small Laser Advanced Beam Cannon > --- INVENTORY (15) --- Heavy Ion Engine Light Treads Faulty Improved Flight Unit Improved Flight Unit Improved Flight Unit Improved Flight Unit Improved Flight Unit Improved Flight Unit Improved Flight Unit Huge Storage Unit Propulsion Shielding Hacking Suite Hacking Suite Heavy Assault Rifle Grenade Launcher Peak State ------------ > --- POWER ------------ Backup Power I > --- PROPULSION ------- Armored Wheel Armored Wheel > --- UTILITY ---------- Heat Sink Large Storage Unit Improved Targeting Computer Backup Plating I > --- WEAPON ----------- Small Laser Advanced Beam Cannon > --- INVENTORY -------- Heavy Ion Engine Light Treads Improved Flight Unit Improved Flight Unit Improved Flight Unit Improved Flight Unit Improved Flight Unit Improved Flight Unit Improved Flight Unit Huge Storage Unit Propulsion Shielding Hacking Suite Hacking Suite Heavy Assault Rifle Grenade Launcher [Rating: 17] Favorites ----------- Power Ion Engine Engine Ion Engine Propulsion Light Treads Treads Light Treads Leg Aluminum Leg Wheel Armored Wheel Flight Unit Flight Unit Utility Huge Storage Unit Device Heat Sink Storage Huge Storage Unit Processor Improved Targeting Computer Protection Core Shielding Weapon Light Cannon Energy Gun Small Laser Energy Cannon Advanced Beam Cannon Ballistic Cannon Light Cannon Launcher Grenade Launcher Build | -11 -10 -9 ------- Run | Yrd Mat Mat Slots Evolved 2 | . . 2 Power . | . . . Propulsion . | . . . Utility 2 | . . 2 Weapon . | . . . Parts Attached 32 | 7 5 20 Power 3 | 1 . 2 Engine 3 | 1 . 2 Core . | . . . Reactor . | . . . Propulsion 11 | 2 . 9 Treads 6 | 2 . 4 Leg 1 | . . 1 Wheel 2 | . . 2 Hover . | . . . Flight 2 | . . 2 Utility 8 | 1 3 4 Device 2 | . . 2 Storage 4 | 1 2 1 Processor 1 | . . 1 Hackware . | . . . Protection 1 | . 1 . Artifact . | . . . Weapon 10 | 3 2 5 Energy Gun 4 | 3 . 1 Energy Cannon 1 | . . 1 Ballistic Gun . | . . . Ballistic Cannon 4 | . 2 2 Launcher 1 | . . 1 Special Weapon . | . . . Impact Weapon . | . . . Slashing Weapon . | . . . Piercing Weapon . | . . . Special Melee Weapon . | . . . Unidentified Prototypes 2 | . . 2 Parts Lost 11 | . 1 10 Power 1 | . . 1 Propulsion 4 | . 1 3 Utility 2 | . . 2 Weapon 4 | . . 4 Highest Loss Streak 10 | . 1 10 To Critical Strikes . | . . . Average Slot Usage (%) 86 | . 91 76 Engine 12 | . 14 10 Treads 17 | . 22 9 Flight 1 | . . 5 Device 1 | . . 3 Storage 12 | . 14 10 Processor 1 | . . 4 Protection 10 | . 11 9 Energy Gun 3 | . 2 5 Ballistic Cannon 20 | . 25 11 Naked Turns . | . . . Heaviest Build 96 | 13 92 96 Greatest Support 40 | 40 40 40 Greatest Overweight (x) 30 | 4 4 30 Average Overweight (x) 2 | . 2 2 Largest Inventory Capacity 25 | 8 25 25 Average Capacity 20 | 7 23 18 Most Carried 18 | 2 17 18 Average Carried 13 | 1 13 13 Final Capacity 25 | 8 25 15 Final Carried 17 | 2 17 15 Class Distribution -------------------- 100% | Mutant Dominant Class ---------------- Mutant | -10/Materials Mutant | -9/Materials Resources | -11 -10 -9 ----------- Run | Yrd Mat Mat Matter Collected 1123 | 214 297 612 Remotely . | . . . Salvage Created 1351 | . 374 977 Parts 100 | . 39 61 Haulers Intercepted 4 | . 1 3 Recyclers Shooed 2 | . . 2 Parts Field Recycled . | . . . Retrieved Matter . | . . . Parts Self-Destructed . | . . . Prevented . | . . . Kills | -11 -10 -9 ------- Run | Yrd Mat Mat Combat Hostiles Destroyed 30 | . 11 19 Guns 6 | . 1 5 Cannons 22 | . 10 12 AOE 2 | . . 2 Classes Destroyed 9 | . 5 4 Worker 1 | . . 1 Builder 1 | . . 1 Hauler 4 | . 1 3 Recycler 4 | . . 4 Operator 3 | . 3 . Watcher 5 | . 3 2 Swarmer 9 | . 5 4 Grunt 16 | . 6 10 Sentry 5 | . . 5 Best Kill Streak 4 | . 3 4 Combat Bots Only 3 | . 3 3 Max Kills in Single Turn 2 | . 1 2 Gunslinging . | . . . Exploded 2 | . . 2 Melee . | . . . Uniques/NPCs Destroyed . | . . . Combat | -11 -10 -9 -------- Run | Yrd Mat Mat Hostile Shots Fired 210 | . 39 171 Missed 48 | . 9 39 Damage Taken 2224 | . 381 1843 Core 434 | . 33 401 Absorbed by Shields . | . . . Redirected to Shielding 50 | . . 50 Regen/Repaired (Parts) 100 | . . 100 Core Remaining (%) 93 | 100 86 . Volleys Fired 139 | . 50 89 Largest 2 | . 2 2 Hottest 108 | . 80 108 Shots Fired 269 | . 97 172 Gun 76 | . 23 53 Cannon 190 | . 74 116 Launcher 3 | . . 3 Special . | . . . Kinetic 159 | . 74 85 Thermal 94 | . 10 84 Explosive 3 | . . 3 Electromagnetic 13 | . 13 . Robot Hit Streak 22 | . 5 22 Robot Miss Streak 8 | . 8 5 Penetration Max . | . . . Secondary Targets . | . . . Shots Hit Robots 167 | . 48 119 Core Hits 64 | . 21 43 Critical Kills . | . . . Critical Parts Destroyed . | . . . Critical Strikes 6 | . 3 3 Blast 6 | . 3 3 Melee Attacks . | . . . Impact . | . . . Slashing . | . . . Piercing . | . . . Sneak Attacks . | . . . Combat Hostiles . | . . . Follow-up Attacks . | . . . Damage Inflicted 2680 | . 808 1872 Guns 594 | . 171 423 Cannons 1962 | . 598 1364 Explosions 120 | . 35 85 Melee . | . . . Ramming 4 | . 4 . Kinetic 1571 | . 598 973 Thermal 927 | . 113 814 Explosive 85 | . . 85 Electromagnetic 93 | . 93 . Impact . | . . . Slashing . | . . . Piercing . | . . . Highest Corruption . | . . . Average Corruption . | . . . Corruption Purged . | . . . Corruption Blocked . | . . . Overload Shots . | . . . Overflow Damage 32 | . 5 27 Projectiles 32 | . 5 27 Explosions . | . . . Melee . | . . . Knockbacks 13 | . 6 7 Impact . | . . . Kinetic 13 | . 6 7 Secondary . | . . . Self-Inflicted Damage 98 | . 98 . Shots 1 | . 1 . Rammed 2 | . 1 1 Targets Rammed 2 | . 1 1 Kicked . | . . . Crushed . | . . . Highest Temperature 186 | . 72 186 Average Temperature 29 | . 23 35 Received Heat Transfer 711 | . 60 651 Siege Activations . | . . . Robots Corrupted . | . . . Combat Hostiles . | . . . Parts Fried . | . . . Impact Corruptions . | . . . Robots Melted . | . . . Combat Hostiles . | . . . Parts Melted 4 | . . 4 Heat Transferred 1951 | . 225 1726 Parts Sabotaged . | . . . Parts Stolen . | . . . Parts Stripped . | . . . Power Chain Reactions 1 | . 1 . Alert | -11 -10 -9 ------- Run | Yrd Mat Mat Peak Influence 306 | . 200 306 Initial . | . . . Average 66 | . 52 93 Maximum Alert Level 1 | . 1 1 Low Security (%) 91 | 100 94 87 Level 1 8 | . 5 12 Level 2 . | . . . Level 3 . | . . . Level 4 . | . . . Level 5 . | . . . High Security . | . . . Max Security . | . . . Squads Dispatched 5 | . 3 2 Investigation 3 | . 1 2 Extermination . | . . . Reinforcement 2 | . 2 . Assault . | . . . Garrison . | . . . Intercept . | . . . Searches Triggered . | . . . Construction Impeded . | . . . Haulers Reinforced . | . . . Active Scanning Responses . | . . . Cargo Convoy Interrupts . | . . . Stealth | -11 -10 -9 --------- Run | Yrd Mat Mat Distress Signals 4 | . 1 3 Communications Jammed . | . . . Distress Signals . | . . . Times Spotted 55 | . 21 34 Peak Tracking Total 5 | . 3 5 Tactical Retreats 1 | . . 1 Traps | -11 -10 -9 ------- Run | Yrd Mat Mat Traps Triggered . | . . . Indirectly . | . . . Trap Hack Attempts . | . . . Triggered . | . . . Disarmed . | . . . Reprogrammed . | . . . Reused . | . . . Traps Extracted . | . . . Installed . | . . . Triggered . | . . . Machines | -11 -10 -9 ---------- Run | Yrd Mat Mat Machines Disabled 4 | . 3 1 Max in Single Turn 2 | . 2 1 Machines Repaired . | . . . Machines Dismantled . | . . . Machines Sabotaged . | . . . Overloaded Fab Kills . | . . . Hacking | -11 -10 -9 --------- Run | Yrd Mat Mat Machines Accessed 11 | . 6 5 Terminals 8 | . 5 3 Fabricators . | . . . Repair Stations 1 | . . 1 Recycling Units 2 | . 1 1 Scanalyzers . | . . . Garrison Access . | . . . Total Hacks 26 | . 15 11 Successful 14 | . 6 8 Failed 11 | . 8 3 Catastrophic 2 | . 2 . Database Lockouts 1 | . 1 . Manual 22 | . 17 5 Terminals 20 | . 13 7 Fabricators . | . . . Repair Stations 3 | . . 3 Recycling Units 3 | . 2 1 Scanalyzers . | . . . Garrison Access . | . . . Terminal Hacks 6 | . 4 2 Robot Analysis 1 | . 1 . Prototype ID Bank 2 | . 1 1 Hauler Manifests 2 | . 1 1 Zone Layout 1 | . 1 . Fabricator Hacks . | . . . Repair Station Hacks 3 | . . 3 Scan Component 1 | . . 1 Repair 1 | . . 1 Refit 1 | . . 1 Recycling Unit Hacks . | . . . Scanalyzer . | . . . Garrison Access Hacks . | . . . Unauthorized Hacks 5 | . 2 3 Terminals 3 | . 1 2 Botnet 2 | . . 2 Operators 1 | . 1 . Fabricators . | . . . Repair Stations . | . . . Recycling Units 2 | . 1 1 Tunnel 2 | . 1 1 Scanalyzers . | . . . Garrison Access . | . . . Data Cores Recovered . | . . . Used . | . . . Hacking Detections 8 | . 5 3 Full Trace Events 3 | . 2 1 Feedback Events . | . . . Feedback Blocked . | . . . Robot Schematics Acquired . | . . . Robots Built . | . . . Authchips . | . . . Time . | . . . Total Robot Build Rating . | . . . Part Schematics Acquired . | . . . Parts Built . | . . . Authchips . | . . . Time . | . . . Total Part Build Rating . | . . . Parts Repaired 1 | . . 1 Time 51 | . . 51 Parts Recycled . | . . . Recycled Matter . | . . . Retrieved Matter . | . . . Retrieved Components . | . . . Parts Scanalyzed . | . . . Part Schematics Acquired . | . . . Parts Damaged . | . . . Bothacking | -11 -10 -9 ------------ Run | Yrd Mat Mat Used RIF Installer . | . . . Robots Hacked . | . . . Non-combat . | . . . Combat . | . . . Robot Hacks Applied . | . . . Relay Couplers Released . | . . . Fabnet Peak Effective % . | . . . Robots Rewired . | . . . Allies Hacked . | . . . Hacks Repelled . | . . . Allies | -11 -10 -9 -------- Run | Yrd Mat Mat Total Allies . | . . . Largest Group . | . . . Highest-Rated Group . | . . . Highest-Rated Ally . | . . . Total Orders . | . . . Ally Attacks . | . . . Total Damage . | . . . Kills . | . . . Allies Corrupted . | . . . Allies Melted . | . . . Intel | -11 -10 -9 ------- Run | Yrd Mat Mat Robot Analysis Total 1 | . 1 . Derelict Logs Recovered . | . . . Drone Launches . | . . . Drone Recoveries . | . . . Exploration | -11 -10 -9 ------------- Run | Yrd Mat Mat Turns Passed 3409 | 75 2091 1243 Spaces Moved 944 | 40 575 329 Core 38 | 13 . 25 Treads 793 | 27 575 191 Legs . | . . . Wheels 49 | . . 49 Hover . | . . . Flight 64 | . . 64 Fastest Speed 50 | 50 160 105 Average Speed 301 | 159 332 263 Slowest Speed 1550 | 250 480 1550 Overloaded Moves . | . . . Propulsion Burnouts . | . . . Robots Hopped . | . . . Cave-ins Triggered . | . . . Exploration Rate (%) 41 | 4 86 33 Regions Visited 2 Branch Regions . Pre-discovered Areas 2 | . 1 1 Known Exits Taken . | . . . Unknown Exits Taken 2 | 1 1 . Scrap Searched . | . . . Spaces Dug . | . . . Terrain Destroyed 63 | . 41 22 Melee . | . . . Projectile . | . . . AOE 63 | . 41 22 Terrain Rammed . | . . . Walls Destroyed . | . . . Machines Disabled . | . . . Actions | -11 -10 -9 --------- Run | Yrd Mat Mat Total 1233 | 48 655 530 Wait 59 | . 4 55 Move 942 | 39 574 329 Hop . | . . . Pick Up 38 | 1 16 21 Fast Attach 25 | 7 5 13 Attach 7 | . . 7 Detach 2 | 1 . 1 Swap . | . . . Drop 19 | . 5 14 Fire 139 | . 50 89 Melee . | . . . Ram 1 | . . 1 Kick . | . . . Crush 1 | . 1 . Escape Stasis . | . . . Rewire . | . . . Trap . | . . . Miscellaneous . | . . . Route ------- -11/Scrapyard -10/Materials (discovered 4 exits: *Mat x2 / [*Min x2]) -9/Materials History --------- Turn | Location | Event 24 | -11/Scrapyard | Discovered new exit (range 15) 76 | -11/Scrapyard | Entered Materials 303 | -10/Materials | Build established: Mutant 563 | -10/Materials | Discovered new exit (range 11) 762 | -10/Materials | Discovered new exit (range 16) 855 | -10/Materials | Discovered new exit (range 14) 1445 | -10/Materials | Discovered new exit (range 15) 2076 | -10/Materials | Central database locked down 2167 | -10/Materials | Entered another Materials area 2167 | -9/Materials | Evolved 2 slots: Utility x2 2561 | -9/Materials | Core integrity fell below 50% 2609 | -9/Materials | Lost 10 parts (1p3n2u4w) 2802 | -9/Materials | Repaired Hvy. Ion Engine 3077 | -9/Materials | Core integrity fell below 20% 3410 | -9/Materials | Destroyed by Y-45 Defender with Heavy Assault Rifle Last Messages --------------- 03319_ K-01 Serf collects debris. 03323_ K-01 Serf cleans the Fusion Modulator. 03325_ K-01 Serf collects debris. 03327_ G-47 Trooper heat short circuits Particle Gun. 03329_ K-01 Serf cleans the Fusion Modulator. 03337_ Aluminum Leg melted. 03337_ Heat Sink melted. 03337_ G-34 Mercenary destroyed. 03346_ Heat Sink melted. 03346_ Y-45 Defender destroyed. 03355_ K-01 Serf collects debris. 03362_ U-05 Engineer destroyed. 03363_ K-01 Serf collects debris. 03365_ Destroyed Lgt. Nuclear Core. 03366_ K-01 Serf collects debris. 03376_ R-06 Scavenger collects Wheel. 03380_ W-16 Scout sends out distress signal. 03380_ R-06 Scavenger collects Terrain Scan Processor. 03384_ R-06 Scavenger collects Lgt. Ion Engine. 03404_ Y-45 Defender destroyed. Map ----- +----------------------------------------------------+ | ?????????????????????????????????????????????????? | | ?????????????????????????????????????????????????? | | ?????????????????????????????????????????????????? | | ?????????????????????????????????????????????????? | | ?????????????????????????????????????????????????? | | ?????????????????????????????????????????????????? | | ?????????????????????????????????????????????????? | | ?????????????????????????????????????????????????? | | ?????????????????????????????????????????????????? | | ?????????????????????????????????????????????????? | | ?????????????????????????????????????????????????? | | ?????????????????????????????????????????????????? | | ?????????????????????????????????????????????????? | | ########????????????????????? ??????????????????? | | [ #????????????????????? ??????????????????? | | #????????????????????? ??????????????????? | | """#????????????????????? ??????????????????? | | """#?????????????????????/#??????????????????? | | """#????????????????????? #??????????????????? | | #?????????????????#### #??????????????????? | | """#????????????????? #??????????????????? | | """#????????????????? #??????????????????? | | """#?????????????????? +??????????????????? | | ! #?????????????????? #??????????????????? | | ! #??????############# #??????????????????? | | ####+######### @# #??????????????????? | | =[ # kkY% #??????????????????? | | ![ # k# t#??##### #?????????? | | ! # # #?[ ? ??????? | | ######### # # # ==! " ??????? | | #?#""???# # # # == T ??????? | | ""#"Y"??# ############## + =! " ??????? | | T"#" "### ##???### ##?# # ! #?????? | | || #??# ###% ###+#######????????? | | |! ############ %= #?????????????????? | | % % % #?????????????????? | | % ] % #?????????????????? | | #??#??????????????? | | #####/## #? #??????????????? | | % * = *# #######? #??????????????? | | % = ## """[#??????? #??????????????? | | ! ## """=#?????## ##?????????????? | | ## """%####### #?????????????? | | ## ==[=/%[!* != #?????????????? | | =## !*=*####### #?????????????? | | % % % %## =%*#?????# #?????????????? | | %## * =[#?????# #?????????????? | | ^^^## #?????# #?????????????? | | % ########?????# #?????????????? | | ??? #?????????????? | +----------------------------------------------------+ Best States ------------- Heat Dissipation 38 Energy Generation 14 Energy Capacity 280 Matter Stores 300 Matter Capacity 300 Sight Range 16 Terrain Scan Density 10 Armor Coverage 80 Core Shielding 20 Evasion (%) 40 Targeting Accuracy 6 Recoil Reduction 2 Item Schematics ----------------- None Robot Schematics ------------------ None Fabricated ------------ Nothing Alien Tech Used ----------------- None Achievements -------------- None Challenges ------------ None Game ------ Seed SystemContainmentSheargun Manual? 0 Play Time 00:18:34 Cumulative 57.0 hours Start 2024.05.14 @ 08:05:22 End 2024.05.14 @ 08:21:26 Sessions 1 Manual Loads 0 Difficulty Rogue Special Mode None Game No. 99 Rogue 77 Adventurer 22 Explorer 0 Win Type - Total 1 Types 1/0/0/0/0/0/0/0/0 Lore% 41 Gallery% 53 Achievement% 47 Wizard Run 0 Options --------- Layout 0 ASCII 0 Keyboard 1 Movement Mouse Keybinds 0 Fullscreen 2 Font 18/SmallcapsGlow Map View 76x50 Zoom Use 28% Tactical HUD 1 Map Filters NONE Filters NONE Steam 1 RUN: 7c9616cd-3b51-4bfa-9d8b-d5f425a0bd35